fUST/lending_fUST_20240715
["ID","MTS","AMOUNT","RATE_DAILY","PERIOD"]
[332203672,1721033447166,-1500.0,0.00025205,2]
[332203675,1721033447177,-650.16,0.00025205,2]
[332203677,1721033447188,-315.48766092,0.00025205,2]
[332203679,1721033447200,-715.41,0.00025205,2]
[332203681,1721033447210,-621.7,0.00025205,2]
[332203683,1721033447220,-500.0,0.00025205,2]
[332203685,1721033447230,-500.0,0.00025205,2]
[332203687,1721033447239,-500.0,0.00025205,2]
[332203689,1721033447249,-500.0,0.00025205,2]
[332203691,1721033447259,-1392.42,0.00025205,2]
[332203693,1721033447268,-500.0,0.00025205,3]
[332203695,1721033447277,-500.0,0.00025205,3]
[332203697,1721033447287,-500.0,0.00025205,3]
[332203699,1721033447297,-500.0,0.00025205,2]
[332203702,1721033447307,-500.0,0.00025205,2]
[332203704,1721033447316,-791.68,0.00025205,2]
[332203706,1721033447326,-427.32438254,0.00025205,2]
[332203708,1721033447337,-500.0,0.00025205,2]
[332203710,1721033447346,-424.33681806,0.00025205,2]
[332203712,1721033447355,-486.50479776,0.00025205,2]
[332203714,1721033447365,-500.0,0.00025205,2]
[332203716,1721033447374,-500.0,0.00025205,2]
[332203718,1721033447383,-151.0,0.00025205,7]
[332203720,1721033447393,-500.0,0.00025205,2]
[332203722,1721033447403,-175.996199,0.00025205,7]
[332203724,1721033447412,-500.0,0.00025205,2]
[332203726,1721033447422,-500.0,0.00025205,2]
[332203728,1721033447431,-500.0,0.00025205,2]
[332203730,1721033447442,-500.0,0.00025205,2]
[332203732,1721033447451,-847.82,0.00025205,2]
[332203734,1721033447460,-500.0,0.00025205,2]
[332203736,1721033447470,-299.603066,0.00025205,7]
[332203738,1721033447480,-151.0,0.00025205,7]
[332203740,1721033447491,-299.603066,0.00025205,7]
[332203742,1721033447501,-500.0,0.00025205,2]
[332203744,1721033447511,-500.0,0.00025205,2]
[332203746,1721033447521,-500.0,0.00025205,2]
[332203748,1721033447531,-500.0,0.00025205,2]
[332203750,1721033447541,-500.0,0.00025205,2]
[332203753,1721033447551,-500.0,0.00025205,2]
[332203755,1721033447560,-649.82223015,0.00025205,2]
[332203757,1721033447570,-500.0,0.00025205,2]
[332203759,1721033447579,-500.0,0.00025205,2]
[332203761,1721033447591,-500.0,0.00025205,2]
[332203763,1721033447600,-168.42188652,0.00025205,2]
[332203765,1721033447610,-500.0,0.00025205,2]
[332203767,1721033447620,-1832.53,0.00025205,2]
[332203769,1721033447630,-151.0,0.00025205,7]
[332203771,1721033447640,-500.0,0.00025205,2]
[332203773,1721033447653,-500.0,0.00025205,2]
[332203775,1721033447663,-811.866382,0.00025205,2]
[332203777,1721033447673,-200.0,0.00025205,2]
[332203779,1721033447683,-151.0,0.00025205,7]
[332203781,1721033447694,-811.866382,0.00025205,2]
[332203783,1721033447704,-2808.39,0.00025205,2]
[332203785,1721033447714,-845.85,0.00025205,2]
[332203787,1721033447726,-500.0,0.00025205,2]
[332203789,1721033447735,-500.0,0.00025205,2]
[332203792,1721033447745,-1426.61,0.00025205,2]
[332203794,1721033447755,-2773.2,0.00025205,2]
[332203796,1721033447765,-500.0,0.00025205,2]
[332203798,1721033447775,-500.0,0.00025205,2]
[332203800,1721033447785,-500.0,0.00025205,2]
[332203802,1721033447795,-500.0,0.00025205,2]
[332203804,1721033447805,-500.0,0.00025205,2]
[332203806,1721033447815,-500.0,0.00025205,2]
[332203808,1721033447824,-520.3142067,0.00025205,2]
[332203810,1721033447835,-500.0,0.00025205,2]
[332203812,1721033447844,-500.0,0.00025205,2]
[332203814,1721033447854,-500.0,0.00025205,2]
[332203816,1721033447863,-500.0,0.00025205,2]
[332203818,1721033447873,-151.0,0.00025205,7]
[332203820,1721033447882,-500.0,0.00025205,2]
[332203822,1721033447892,-500.0,0.00025205,2]
[332203824,1721033447903,-500.0,0.00025205,2]
[332203826,1721033447914,-500.0,0.00025205,2]
[332203828,1721033447923,-500.0,0.00025205,2]
[332203830,1721033447933,-151.0,0.00025205,7]
[332203832,1721033447943,-500.0,0.00025205,2]
[332203834,1721033447953,-251.14412086,0.00025205,2]
[332203836,1721033447964,-500.0,0.00025205,2]
[332203838,1721033447974,-500.0,0.00025205,2]
[332203840,1721033447985,-500.0,0.00025205,2]
[332203843,1721033447995,-500.0,0.00025205,2]
[332203845,1721033448005,-500.0,0.00025205,2]
[332203847,1721033448016,-501.52189092,0.00025205,2]
[332203849,1721033448026,-500.0,0.00025205,2]
[332203862,1721033448134,-841.56,0.00025205,2]
[332203864,1721033448155,-500.0,0.00025205,2]
[332203866,1721033448165,-326.779574,0.00025205,7]
[332203868,1721033448177,-503.25182526,0.00025205,2]
[332203870,1721033448188,-500.0,0.00025205,2]
[332203873,1721033448199,-500.0,0.00025205,2]
[332203875,1721033448209,-500.0,0.00025205,2]
[332203877,1721033448220,-326.779574,0.00025205,7]
[332203879,1721033448230,-500.0,0.00025205,2]
[332203881,1721033448241,-500.0,0.00025205,2]
[332203883,1721033448250,-500.0,0.00025205,2]
[332203885,1721033448259,-500.0,0.00025205,2]
[332203887,1721033448269,-3850.77,0.00025205,2]
[332203889,1721033448278,-500.0,0.00025205,2]
[332203891,1721033448288,-500.0,0.00025205,2]
[332203893,1721033448298,-500.0,0.00025205,2]
[332203895,1721033448308,-500.0,0.00025205,2]
[332203897,1721033448318,-500.0,0.00025205,2]
[332203899,1721033448328,-500.0,0.00025205,2]
[332203901,1721033448339,-151.0,0.00025205,7]
[332203903,1721033448349,-500.0,0.00025205,2]
[332203905,1721033448360,-500.0,0.00025205,2]
[332203907,1721033448369,-500.0,0.00025205,2]
[332203909,1721033448380,-500.0,0.00025205,2]
[332203911,1721033448389,-500.0,0.00025205,2]
[332203913,1721033448399,-442.516801,0.00025205,7]
[332203916,1721033448409,-500.0,0.00025205,2]
[332203917,1721033448420,-500.0,0.00025205,2]
[332203919,1721033448429,-500.0,0.00025205,2]
[332203921,1721033448439,-664.91,0.00025205,2]
[332203924,1721033448450,-442.516801,0.00025205,7]
[332203926,1721033448460,-500.0,0.00025205,2]
[332203928,1721033448470,-1626.76,0.00025205,2]
[332203930,1721033448482,-1061.766511,0.00025205,7]
[332203932,1721033448492,-500.0,0.00025205,2]
[332203934,1721033448503,-500.0,0.00025205,2]
[332203936,1721033448514,-500.0,0.00025205,2]
[332203938,1721033448523,-500.0,0.00025205,2]
[332203940,1721033448533,-1061.766511,0.00025205,7]
[332203942,1721033448543,-765.72,0.00025205,2]
[332203944,1721033448552,-500.0,0.00025205,2]
[332203946,1721033448561,-156.05816705,0.00025205,2]
[332203948,1721033448571,-210.64416,0.00025205,7]
[332203950,1721033448581,-500.0,0.00025205,2]
[332203952,1721033448591,-609.72,0.00025205,2]
[332203954,1721033448600,-500.0,0.00025205,2]
[332203956,1721033448610,-500.0,0.00025205,2]
[332203958,1721033448622,-500.0,0.00025205,2]
[332203960,1721033448632,-21833.04,0.00025205,2]
[332203963,1721033448643,-457.989968,0.00025205,7]
[332203965,1721033448656,-500.0,0.00025205,2]
[332203967,1721033448667,-500.0,0.00025205,2]
[332203969,1721033448677,-457.989968,0.00025205,7]
[332203971,1721033448688,-500.0,0.00025205,2]
[332203973,1721033448701,-397.06036888,0.00025205,2]
[332203975,1721033448711,-500.0,0.00025205,2]
[332203977,1721033448721,-500.0,0.00025205,2]
[332203979,1721033448731,-500.0,0.00025205,2]
[332203981,1721033448741,-2439.81,0.00025205,2]
[332203983,1721033448750,-510.98,0.00025205,2]
[332203985,1721033448759,-500.0,0.00025205,2]
[332203987,1721033448768,-500.0,0.00025205,2]
[332203989,1721033448778,-500.0,0.00025205,2]
[332203991,1721033448787,-500.0,0.00025205,2]
[332203993,1721033448798,-500.0,0.00025205,2]
[332203995,1721033448807,-500.0,0.00025205,2]
[332203997,1721033448817,-500.0,0.00025205,2]
[332203999,1721033448827,-500.0,0.00025205,2]
[332204001,1721033448837,-500.0,0.00025205,2]
[332204003,1721033448848,-500.0,0.00025205,2]
[332204005,1721033448858,-500.0,0.00025205,2]
[332204007,1721033448868,-500.0,0.00025205,2]
[332204009,1721033448878,-500.0,0.00025205,2]
[332204011,1721033448887,-4417.13,0.00025205,2]
[332204013,1721033448897,-500.0,0.00025205,2]
[332204015,1721033448907,-500.0,0.00025205,2]
[332204018,1721033448916,-1034.76,0.00025205,2]
[332204019,1721033448926,-500.0,0.00025205,2]
[332204021,1721033448935,-151.0,0.00025205,7]
[332204023,1721033448944,-500.0,0.00025205,2]
[332204025,1721033448954,-500.0,0.00025205,2]
[332204027,1721033448963,-500.0,0.00025205,2]
[332204029,1721033448973,-151.0,0.00025205,7]
[332204031,1721033448982,-780.19,0.00025205,2]
[332204033,1721033448991,-500.0,0.00025205,2]
[332204035,1721033449001,-4687.31,0.00025205,2]
[332204037,1721033449010,-1264.1,0.00025205,2]
[332204039,1721033449020,-500.0,0.00025205,2]
[332204041,1721033449030,-500.0,0.00025205,2]
[332204043,1721033449039,-500.0,0.00025205,2]
[332204045,1721033449050,-1390.09,0.00025205,2]
[332204047,1721033449059,-500.0,0.00025205,2]
[332204049,1721033449070,-500.0,0.00025205,2]
[332204051,1721033449079,-500.0,0.00025205,2]
[332204053,1721033449089,-561.78,0.00025205,2]
[332204055,1721033449099,-500.0,0.00025205,2]
[332204057,1721033449109,-500.0,0.00025205,2]
[332204059,1721033449119,-500.0,0.00025205,2]
[332204061,1721033449129,-273.051489,0.00025205,7]
[332204063,1721033449139,-500.0,0.00025205,2]
[332204064,1721033449148,-500.0,0.00025205,2]
[332204065,1721033449157,-500.0,0.00025205,2]
[332204066,1721033449167,-500.0,0.00025205,2]
[332204067,1721033449176,-273.051489,0.00025205,7]
[332204068,1721033449185,-500.0,0.00025205,2]
[332204069,1721033449194,-500.0,0.00025205,2]
[332204070,1721033449203,-2212.25,0.00025205,2]
[332204071,1721033449214,-175.511413,0.00025205,7]
[332204072,1721033449223,-500.0,0.00025205,2]
[332204073,1721033449233,-500.0,0.00025205,2]
[332204074,1721033449242,-500.0,0.00025205,2]
[332204075,1721033449252,-614.24581285,0.00025205,2]
[332204076,1721033449261,-175.511413,0.00025205,7]
[332204077,1721033449270,-500.0,0.00025205,2]
[332204078,1721033449279,-500.0,0.00025205,2]
[332204079,1721033449290,-500.0,0.00025205,2]
[332204080,1721033449300,-27085.7152118,0.0002525,2]
[332204081,1721033449312,-35192.19392963,0.0002525,2]
[332204082,1721033449321,-155.697465,0.0002525,7]
[332204083,1721033449330,-152.659809,0.0002525,7]
[332204084,1721033449341,-151.0,0.0002525,7]
[332204085,1721033449350,-165.191516,0.0002525,2]
[332204086,1721033449359,-165.191516,0.0002525,2]
[332204087,1721033449368,-413.556163,0.0002525,7]
[332204089,1721033449378,-413.556163,0.0002525,7]
[332204091,1721033449388,-151.0,0.0002525,7]
[332204093,1721033449398,-165.977123,0.0002525,7]
[332204095,1721033449409,-165.977123,0.0002525,7]
[332204097,1721033449418,-151.0,0.0002525,7]
[332204098,1721033449428,-299.603066,0.0002525,7]
[332204100,1721033449438,-190.85511,0.0002525,7]
[332204102,1721033449447,-299.603066,0.0002525,7]
[332204104,1721033449459,-151.0,0.0002525,7]
[332204106,1721033449469,-811.866382,0.0002525,2]
[332204107,1721033449478,-151.0,0.0002525,7]
[332204109,1721033449490,-811.866382,0.0002525,2]
[332204110,1721033449499,-151.0,0.0002525,7]
[332204111,1721033449509,-151.0,0.0002525,7]
[332204112,1721033449520,-326.779574,0.0002525,7]
[332204113,1721033449529,-326.779574,0.0002525,7]
[332204114,1721033449538,-151.0,0.0002525,7]
[332204115,1721033449547,-442.516801,0.0002525,7]
[332204116,1721033449557,-442.516801,0.0002525,7]
[332204117,1721033449566,-1061.766511,0.0002525,7]
[332204118,1721033449575,-1061.766511,0.0002525,7]
[332204119,1721033449584,-457.989968,0.0002525,7]
[332204120,1721033449596,-457.989968,0.0002525,7]
[332204121,1721033449606,-151.0,0.0002525,7]
[332204122,1721033449616,-151.0,0.0002525,7]
[332204123,1721033449629,-273.051489,0.0002525,7]
[332204124,1721033449638,-273.051489,0.0002525,7]
[332204125,1721033449650,-160.0,0.00025255,4]
[332204126,1721033449668,-206.3900376,0.0002526,2]
[332204128,1721033449678,-206.3900376,0.00025288,2]
[332204129,1721033449687,-150.0,0.00025321,2]
[332204131,1721033449696,-302.51602579,0.0002533,2]
[332204133,1721033449705,-151.0,0.00025331,7]
[332204135,1721033449715,-150.0,0.00025331,2]
[332204137,1721033449725,-504.0,0.00025331,2]
[332204139,1721033449734,-1407.0,0.00025331,2]
[332204141,1721033449743,-250.0,0.00025359,2]
[332204143,1721033449752,-150.086,0.00025359,2]
[332204145,1721033449761,-215.5,0.0002539,2]
[332204147,1721033449770,-500.0,0.00025479,2]
[332204149,1721033449779,-500.0,0.00025479,2]
[332204150,1721033449788,-500.0,0.00025479,2]
[332204152,1721033449797,-611.28961074,0.00025479,2]
[332204154,1721033449806,-500.0,0.00025479,2]
[332204155,1721033449815,-500.0,0.00025479,2]
[332204156,1721033449825,-500.0,0.00025479,2]
[332204157,1721033449834,-156.08358578,0.00025479,2]
[332204158,1721033449845,-708.24,0.00025479,4]
[332204159,1721033449854,-500.0,0.00025479,2]
[332204160,1721033449863,-500.0,0.00025479,2]
[332204161,1721033449873,-500.0,0.00025479,2]
[332204162,1721033449882,-509.0951134,0.00025479,2]
[332204163,1721033449892,-393.63978521,0.00025479,2]
[332204164,1721033449901,-500.0,0.00025479,2]
[332204165,1721033449910,-500.0,0.00025479,2]
[332204166,1721033449919,-500.0,0.00025479,2]
[332204167,1721033449929,-500.0,0.00025479,2]
[332204168,1721033449939,-497.25553794,0.00025479,2]
[332204169,1721033449949,-500.0,0.00025479,2]
[332204170,1721033449959,-500.0,0.00025479,2]
[332204171,1721033449968,-500.0,0.00025479,2]
[332204172,1721033449978,-500.0,0.00025479,2]
[332204173,1721033449987,-500.0,0.00025479,2]
[332204174,1721033449997,-500.0,0.00025479,2]
[332204175,1721033450006,-501.98,0.00025479,2]
[332204176,1721033450015,-500.0,0.00025479,2]
[332204177,1721033450023,-500.0,0.00025479,2]
[332204178,1721033450032,-500.0,0.00025479,2]
[332204179,1721033450042,-500.0,0.00025479,2]
[332204180,1721033450051,-500.0,0.00025479,2]
[332204181,1721033450061,-500.0,0.00025479,2]
[332204182,1721033450070,-447.38473016,0.00025479,2]
[332204183,1721033450079,-204.42906775,0.00025479,2]
[332204184,1721033450088,-500.0,0.00025479,2]
[332204185,1721033450097,-500.0,0.00025479,2]
[332204186,1721033450106,-500.0,0.00025479,2]
[332204187,1721033450116,-562.43903844,0.00025479,2]
[332204188,1721033450125,-500.0,0.00025479,2]
[332204189,1721033450135,-702.26,0.00025479,2]
[332204191,1721033450144,-1500.0,0.00025479,2]
[332204193,1721033450153,-242.981211,0.00025479,7]
[332204195,1721033450162,-650.16,0.00025479,2]
[332204196,1721033450171,-242.981211,0.00025479,7]
[332204198,1721033450181,-715.41,0.00025479,2]
[332204200,1721033450189,-621.7,0.00025479,2]
[332204201,1721033450198,-500.0,0.00025479,2]
[332204202,1721033450207,-500.0,0.00025479,2]
[332204204,1721033450216,-165.088209,0.00025479,7]
[332204206,1721033450225,-500.0,0.00025479,2]
[332204207,1721033450234,-165.088209,0.00025479,7]
[332204208,1721033450243,-500.0,0.00025479,2]
[332204209,1721033450252,-1392.42,0.00025479,2]
[332204210,1721033450261,-500.0,0.00025479,2]
[332204211,1721033450271,-500.0,0.00025479,2]
[332204212,1721033450280,-791.68,0.00025479,2]
[332204213,1721033450289,-152.82118,0.00025479,7]
[332204214,1721033450298,-210.84787414,0.00025479,2]
[332204215,1721033450307,-152.82118,0.00025479,7]
[332204216,1721033450316,-500.0,0.00025479,2]
[332204217,1721033450325,-584.57750691,0.00025479,2]
[332204218,1721033450335,-151.0,0.00025479,7]
[332204219,1721033450346,-500.0,0.00025479,2]
[332204220,1721033450356,-500.0,0.00025479,2]
[332204221,1721033450365,-500.0,0.00025479,2]
[332204222,1721033450375,-500.0,0.00025479,2]
[332204223,1721033450384,-320.26514962,0.00025479,2]
[332204224,1721033450394,-847.82,0.00025479,2]
[332204225,1721033450403,-500.0,0.00025479,2]
[332204226,1721033450414,-500.0,0.00025479,2]
[332204227,1721033450424,-222.10780251,0.00025479,2]
[332204228,1721033450433,-500.0,0.00025479,2]
[332204229,1721033450443,-500.0,0.00025479,2]
[332204230,1721033450452,-500.0,0.00025479,2]
[332204231,1721033450462,-500.0,0.00025479,2]
[332204232,1721033450473,-500.0,0.00025479,2]
[332204233,1721033450483,-500.0,0.00025479,2]
[332204234,1721033450493,-430.64224005,0.00025479,2]
[332204235,1721033450503,-500.0,0.00025479,2]
[332204236,1721033450513,-1832.53,0.00025479,2]
[332204237,1721033450523,-500.0,0.00025479,2]
[332204238,1721033450532,-500.0,0.00025479,2]
[332204239,1721033450541,-200.0,0.00025479,2]
[332204240,1721033450551,-2808.39,0.00025479,2]
[332204251,1721033450654,-845.85,0.00025479,2]
[332204253,1721033450666,-500.0,0.00025479,2]
[332204255,1721033450676,-500.0,0.00025479,2]
[332204257,1721033450686,-1426.61,0.00025479,2]
[332204259,1721033450696,-2773.2,0.00025479,2]
[332204261,1721033450706,-500.0,0.00025479,2]
[332204263,1721033450717,-500.0,0.00025479,2]
[332204265,1721033450728,-500.0,0.00025479,2]
[332204266,1721033450739,-500.0,0.00025479,2]
[332204268,1721033450748,-500.0,0.00025479,2]
[332204270,1721033450758,-500.0,0.00025479,2]
[332204271,1721033450767,-500.0,0.00025479,2]
[332204272,1721033450776,-500.0,0.00025479,2]
[332204273,1721033450785,-500.0,0.00025479,2]
[332204274,1721033450794,-500.0,0.00025479,2]
[332204275,1721033450802,-500.0,0.00025479,2]
[332204276,1721033450811,-500.0,0.00025479,2]
[332204277,1721033450821,-500.0,0.00025479,2]
[332204278,1721033450829,-500.0,0.00025479,2]
[332204279,1721033450839,-500.0,0.00025479,2]
[332204280,1721033450848,-500.0,0.00025479,2]
[332204281,1721033450858,-500.0,0.00025479,2]
[332204282,1721033450867,-500.0,0.00025479,2]
[332204283,1721033450876,-500.0,0.00025479,2]
[332204284,1721033450886,-363.49108162,0.00025479,2]
[332204285,1721033450896,-841.56,0.00025479,2]
[332204286,1721033450907,-500.0,0.00025479,2]
[332204287,1721033450917,-500.0,0.00025479,2]
[332204289,1721033450928,-500.0,0.00025479,2]
[332204291,1721033450939,-500.0,0.00025479,2]
[332204293,1721033450949,-500.0,0.00025479,2]
[332204295,1721033450958,-234.4363962,0.00025479,2]
[332204300,1721033450994,-265.5636038,0.00025479,2]
[332204302,1721033451003,-181.4597672,0.00025479,2]
[332204303,1721033451531,-39.0907925,0.00016255,2]
[332204304,1721033451639,-630.82,0.00016255,2]
[332204305,1721033452015,-112.8908964,0.00016255,2]
[332204306,1721033452025,-505.41831375,0.00024635,2]
[332204307,1721033452034,-500.0,0.00024657,2]
[332204308,1721033452043,-167.0554117,0.00024657,2]
[332204309,1721033452053,-5975.36,0.00024657,2]
[332204310,1721033452062,-500.0,0.00024657,2]
[332204311,1721033452071,-5975.36,0.00024657,2]
[332204312,1721033452080,-5975.36,0.00024657,2]
[332204313,1721033452089,-5975.36,0.00024657,2]
[332204314,1721033452100,-500.0,0.00024657,2]
[332204315,1721033452110,-5975.36,0.00024657,2]
[332204316,1721033452119,-5975.36,0.00024657,2]
[332204317,1721033452128,-5975.36,0.00024657,2]
[332204318,1721033452137,-5975.36,0.00024657,2]
[332204319,1721033452147,-500.0,0.00024657,2]
[332204320,1721033452157,-5975.36,0.00024657,2]
[332204321,1721033452166,-5975.36,0.00024657,2]
[332204322,1721033452175,-703.0,0.00024657,2]
[332204323,1721033452184,-500.0,0.00024657,2]
[332204324,1721033452193,-500.0,0.00024657,2]
[332204325,1721033452202,-500.0,0.00024657,2]
[332204326,1721033452211,-500.0,0.00024657,2]
[332204327,1721033452220,-503.69054412,0.00024657,2]
[332204328,1721033452229,-5975.36,0.0002481,2]
[332204329,1721033452238,-5975.36,0.0002481,2]
[332204330,1721033452247,-5975.36,0.0002481,2]
[332204331,1721033452257,-5975.36,0.0002482,2]
[332204332,1721033452266,-5975.36,0.0002482,2]
[332204333,1721033452275,-5975.36,0.0002493,2]
[332204334,1721033452284,-5975.36,0.0002493,2]
[332204335,1721033452293,-500.0,0.00024931,2]
[332204336,1721033452303,-500.0,0.00024931,2]
[332204337,1721033452312,-500.0,0.00024931,2]
[332204338,1721033452321,-703.0,0.00024931,2]
[332204339,1721033452330,-500.0,0.00024931,2]
[332204340,1721033452340,-500.0,0.00024931,2]
[332204341,1721033452351,-500.0,0.00024931,2]
[332204342,1721033452360,-500.0,0.00024931,2]
[332204343,1721033452371,-514.85,0.00025205,2]
[332204344,1721033452382,-500.0,0.00025205,2]
[332204345,1721033452393,-500.0,0.00025205,2]
[332204346,1721033452402,-703.0,0.00025205,2]
[332204347,1721033452412,-500.0,0.00025205,2]
[332204348,1721033452422,-500.0,0.00025205,2]
[332204349,1721033452431,-318.5402328,0.00025479,2]
[332204350,1721033452441,-3850.77,0.00025479,2]
[332204351,1721033452450,-500.0,0.00025479,2]
[332204352,1721033452460,-500.0,0.00025479,2]
[332204353,1721033452469,-500.0,0.00025479,2]
[332204354,1721033452479,-500.0,0.00025479,2]
[332204355,1721033452488,-500.0,0.00025479,2]
[332204356,1721033452497,-500.0,0.00025479,2]
[332204357,1721033452508,-500.0,0.00025479,2]
[332204358,1721033452518,-500.0,0.00025479,2]
[332204359,1721033452529,-500.0,0.00025479,2]
[332204360,1721033452539,-500.0,0.00025479,2]
[332204361,1721033452548,-500.0,0.00025479,2]
[332204362,1721033452558,-500.0,0.00025479,2]
[332204363,1721033452570,-500.0,0.00025479,2]
[332204364,1721033452580,-500.0,0.00025479,2]
[332204365,1721033452591,-664.91,0.00025479,2]
[332204366,1721033452602,-501.93276523,0.00025479,2]
[332204367,1721033452613,-1626.76,0.00025479,2]
[332204368,1721033452622,-500.0,0.00025479,2]
[332204369,1721033452632,-500.0,0.00025479,2]
[332204370,1721033452643,-500.0,0.00025479,2]
[332204371,1721033452656,-278.02389084,0.00025479,2]
[332204372,1721033452666,-765.72,0.00025479,2]
[332204373,1721033452675,-500.0,0.00025479,2]
[332204374,1721033452684,-500.0,0.00025479,2]
[332204375,1721033452694,-609.72,0.00025479,2]
[332204376,1721033452703,-597.01788008,0.00025479,2]
[332204377,1721033452713,-500.0,0.00025479,2]
[332204378,1721033452724,-500.0,0.00025479,2]
[332204379,1721033452734,-21833.04,0.00025479,2]
[332204380,1721033452745,-500.0,0.00025479,2]
[332204381,1721033452755,-500.0,0.00025479,2]
[332204382,1721033452764,-500.0,0.00025479,2]
[332204383,1721033452773,-500.0,0.00025479,2]
[332204384,1721033452783,-500.0,0.00025479,2]
[332204385,1721033452792,-500.0,0.00025479,2]
[332204386,1721033452801,-2439.81,0.00025479,2]
[332204387,1721033452812,-510.98,0.00025479,2]
[332204388,1721033452823,-576.78655717,0.00025479,2]
[332204389,1721033452832,-500.0,0.00025479,2]
[332204390,1721033452843,-500.0,0.00025479,2]
[332204391,1721033452942,-500.0,0.00025479,2]
[332204392,1721033452953,-435.01,0.00025479,2]
[332204393,1721033452963,-500.0,0.00025479,2]
[332204394,1721033452974,-500.0,0.00025479,2]
[332204395,1721033452984,-393.33438591,0.00025479,2]
[332204396,1721033452995,-500.0,0.00025479,2]
[332204397,1721033453005,-219.15355749,0.00025479,2]
[332204398,1721033453017,-500.0,0.00025479,2]
[332204399,1721033453027,-509.58751626,0.00025479,2]
[332204400,1721033453038,-500.0,0.00025479,2]
[332204401,1721033453049,-4417.13,0.00025479,2]
[332204402,1721033453058,-500.0,0.00025479,2]
[332204403,1721033453068,-500.0,0.00025479,2]
[332204404,1721033453077,-1034.76,0.00025479,2]
[332204405,1721033453087,-500.0,0.00025479,2]
[332204406,1721033453098,-500.0,0.00025479,2]
[332204407,1721033453107,-151.0,0.00025479,7]
[332204408,1721033453116,-500.0,0.00025479,2]
[332204409,1721033453126,-500.0,0.00025479,2]
[332204410,1721033453135,-780.19,0.00025479,2]
[332204411,1721033453144,-151.0,0.00025479,7]
[332204412,1721033453154,-500.0,0.00025479,2]
[332204413,1721033453163,-4687.31,0.00025479,2]
[332204414,1721033453173,-1264.1,0.00025479,2]
[332204415,1721033453182,-500.0,0.00025479,2]
[332204416,1721033453191,-500.0,0.00025479,2]
[332204417,1721033453201,-500.0,0.00025479,2]
[332204418,1721033453210,-1390.09,0.00025479,2]
[332204419,1721033453220,-500.0,0.00025479,2]
[332204420,1721033453230,-500.0,0.00025479,2]
[332204421,1721033453240,-500.0,0.00025479,2]
[332204422,1721033453250,-561.78,0.00025479,2]
[332204423,1721033453260,-500.0,0.00025479,2]
[332204424,1721033453269,-500.0,0.00025479,2]
[332204425,1721033453279,-500.0,0.00025479,2]
[332204426,1721033453288,-500.0,0.00025479,2]
[332204427,1721033453298,-273.051489,0.00025479,7]
[332204428,1721033453308,-500.0,0.00025479,2]
[332204429,1721033453317,-500.0,0.00025479,2]
[332204430,1721033453327,-500.0,0.00025479,2]
[332204431,1721033453337,-273.051489,0.00025479,7]
[332204432,1721033453347,-500.0,0.00025479,2]
[332204433,1721033453356,-500.0,0.00025479,2]
[332204434,1721033453366,-2212.25,0.00025479,2]